fUSD/lending_fUSD_20260217
["ID","MTS","AMOUNT","RATE_DAILY","PERIOD"]
[405837963,1771350652917,-276.59,0.00017834,2]
[405837964,1771350652926,-276.59,0.00017848,2]
[405837965,1771350652935,-500.0,0.00017855,2]
[405837966,1771350652946,-200.0,0.00017855,2]
[405837967,1771350652955,-200.0,0.00017856,2]
[405837968,1771350652963,-500.0,0.00017856,2]
[405837969,1771350652973,-500.0,0.00017856,2]
[405837970,1771350652983,-200.0,0.00017856,2]
[405837971,1771350652994,-200.0,0.00017856,2]
[405837972,1771350653003,-150.0,0.00017862,2]
[405837973,1771350653012,-1000.0,0.00017865,2]
[405837974,1771350653022,-1000.0,0.0001787,2]
[405837975,1771350653031,-1000.0,0.00017871,2]
[405837976,1771350653040,-1000.0,0.00017872,2]
[405837977,1771350653050,-1000.0,0.00017873,2]
[405837978,1771350653061,-500.0,0.000179,2]
[405837979,1771350653071,-500.0,0.000179,2]
[405837980,1771350653081,-6734.49691758,0.000179,2]
[405837981,1771350653092,-1000.0,0.00017918,2]
[405837982,1771350653102,-1000.0,0.0001793,2]
[405837983,1771350653112,-1055.29348017,0.00017934,2]
[405837984,1771350653121,-3068.0,0.00017936,2]
[405837985,1771350653132,-1000.0,0.00017938,2]
[405837986,1771350653142,-1000.0,0.00017939,2]
[405837987,1771350653152,-189.36637923,0.00017975,2]
[405837988,1771350653161,-947.1253165,0.00017982,2]
[405837989,1771350653171,-226.42090261,0.00017982,2]
[405837990,1771350653180,-1000.0,0.00017991,2]
[405837991,1771350653190,-151.0,0.00017997,3]
[405837992,1771350653199,-151.0,0.00017997,3]
[405837993,1771350653208,-743.50770149,0.00017997,3]
[405837994,1771350653218,-151.0,0.00017997,3]
[405837995,1771350653228,-771.01748645,0.00017997,3]
[405837996,1771350653237,-250.0,0.00017997,3]
[405837997,1771350653247,-250.0,0.00017997,3]
[405837998,1771350653256,-151.0,0.00017997,3]
[405837999,1771350653266,-799.54513345,0.00017997,3]
[405838000,1771350653275,-151.12957794,0.00017997,3]
[405838001,1771350653285,-250.0,0.00017997,3]
[405838002,1771350653294,-250.0,0.00017997,3]
[405838003,1771350653304,-250.0,0.00017997,3]
[405838004,1771350653315,-151.0,0.00017997,3]
[405838005,1771350653325,-1428.38747117,0.00017997,3]
[405838006,1771350653334,-250.0,0.00017997,3]
[405838007,1771350653344,-250.0,0.00017997,3]
[405838008,1771350653355,-250.0,0.00017997,3]
[405838009,1771350653365,-151.0,0.00017997,3]
[405838010,1771350653374,-829.12830338,0.00017997,3]
[405838011,1771350653384,-1100.42979595,0.00017997,3]
[405838012,1771350653393,-250.0,0.00017997,3]
[405838013,1771350653403,-250.0,0.00017997,3]
[405838014,1771350653412,-250.0,0.00017997,3]
[405838015,1771350653422,-151.0,0.00017997,3]
[405838016,1771350653433,-500.0,0.00017997,3]
[405838017,1771350653443,-250.0,0.00017997,3]
[405838018,1771350653453,-250.0,0.00017997,3]
[405838019,1771350653464,-250.0,0.00017997,3]
[405838020,1771350653474,-151.0,0.00017997,3]
[405838021,1771350653483,-500.0,0.00017997,3]
[405838022,1771350653494,-859.80605061,0.00017997,3]
[405838023,1771350653504,-250.0,0.00017997,3]
[405838024,1771350653515,-250.0,0.00017997,3]
[405838025,1771350653525,-250.0,0.00017997,3]
[405838026,1771350653535,-151.0,0.00017997,3]
[405838027,1771350653546,-500.0,0.00017997,3]
[405838028,1771350653555,-891.61887448,0.00017997,3]
[405838029,1771350653566,-250.0,0.00017997,3]
[405838030,1771350653576,-250.0,0.00017997,3]
[405838031,1771350653586,-151.0,0.00017997,3]
[405838032,1771350653596,-500.0,0.00017997,3]
[405838033,1771350653607,-924.60877284,0.00017997,3]
[405838034,1771350653617,-174.61919141,0.00017997,3]
[405838035,1771350653627,-250.0,0.00017997,3]
[405838036,1771350653637,-250.0,0.00017997,3]
[405838037,1771350653647,-151.0,0.00017997,3]
[405838038,1771350653657,-500.0,0.00017997,3]
[405838039,1771350653667,-958.81929743,0.00017997,3]
[405838040,1771350653676,-181.08010149,0.00017997,3]
[405838041,1771350653686,-250.0,0.00017997,3]
[405838042,1771350653695,-250.0,0.00017997,3]
[405838043,1771350653705,-151.0,0.00017997,3]
[405838044,1771350653715,-500.0,0.00017997,3]
[405838045,1771350653724,-994.29561144,0.00017997,3]
[405838046,1771350653734,-187.78006525,0.00017997,3]
[405838047,1771350653744,-250.0,0.00017997,3]
[405838048,1771350653753,-250.0,0.00017997,3]
[405838049,1771350653763,-250.0,0.00017997,3]
[405838050,1771350653773,-151.0,0.00017997,3]
[405838051,1771350653785,-500.0,0.00017997,3]
[405838052,1771350653797,-1031.08454906,0.00017997,3]
[405838053,1771350653806,-194.72792766,0.00017997,3]
[405838054,1771350653816,-250.0,0.00017997,3]
[405838055,1771350653827,-250.0,0.00017997,3]
[405838056,1771350653837,-250.0,0.00017997,3]
[405838057,1771350653847,-500.0,0.00017997,3]
[405838058,1771350653857,-1069.23467738,0.00017997,3]
[405838059,1771350653868,-201.93286099,0.00017997,3]
[405838060,1771350653877,-151.0,0.00017997,3]
[405838061,1771350653887,-250.0,0.00017997,3]
[405838062,1771350653896,-250.0,0.00017997,3]
[405838063,1771350653905,-250.0,0.00017997,3]
[405838064,1771350653916,-500.0,0.00017997,3]
[405838065,1771350653925,-1108.79636044,0.00017997,3]
[405838066,1771350653935,-209.40437684,0.00017997,3]
[405838067,1771350653944,-151.0,0.00017997,3]
[405838068,1771350653954,-250.0,0.00017997,3]
[405838069,1771350653964,-500.0,0.00017997,3]
[405838070,1771350653974,-1149.82182577,0.00017997,3]
[405838071,1771350653984,-217.15233878,0.00017997,3]
[405838072,1771350653993,-500.0,0.00017997,3]
[405838073,1771350654003,-1192.36523333,0.00017997,3]
[405838074,1771350654014,-225.18697532,0.00017997,3]
[405838075,1771350654023,-1236.48274696,0.00017997,3]
[405838076,1771350654033,-233.51889341,0.00017997,3]
[405838077,1771350654043,-242.15909246,0.00017997,3]
[405838078,1771350654054,-500.0,0.00017997,3]
[405838079,1771350654064,-251.11897888,0.00017997,3]
[405838080,1771350654075,-500.0,0.00017997,3]
[405838081,1771350654085,-260.4103811,0.00017997,3]
[405838082,1771350654095,-500.0,0.00017997,3]
[405838083,1771350654106,-270.0455652,0.00017997,3]
[405838084,1771350654116,-500.0,0.00017997,3]
[405838085,1771350654126,-280.03725112,0.00017997,3]
[405838086,1771350654136,-500.0,0.00017997,3]
[405838087,1771350654145,-290.39862941,0.00017997,3]
[405838088,1771350654155,-500.0,0.00017997,3]
[405838089,1771350654165,-301.1433787,0.00017997,3]
[405838090,1771350654175,-500.0,0.00017997,3]
[405838091,1771350654185,-500.0,0.00017997,3]
[405838092,1771350654195,-500.0,0.00017997,3]
[405838093,1771350654204,-500.0,0.00017997,3]
[405838094,1771350654214,-500.0,0.00017997,3]
[405838095,1771350654224,-250.0,0.00017997,3]
[405838096,1771350654234,-151.0,0.00017997,3]
[405838097,1771350654245,-250.0,0.00017997,3]
[405838098,1771350654256,-250.0,0.00017997,3]
[405838099,1771350654266,-151.0,0.00017997,3]
[405838100,1771350654276,-250.0,0.00017997,3]
[405838101,1771350654286,-250.0,0.00017997,3]
[405838102,1771350654295,-151.0,0.00017997,3]
[405838103,1771350654307,-250.0,0.00017997,3]
[405838104,1771350654318,-693.3919763,0.00017997,3]
[405838105,1771350654328,-250.0,0.00017997,3]
[405838106,1771350654338,-250.0,0.00017997,3]
[405838107,1771350654347,-151.0,0.00017997,3]
[405838108,1771350654356,-250.0,0.00017997,3]
[405838109,1771350654366,-719.04747942,0.00017997,3]
[405838110,1771350654375,-250.0,0.00017997,3]
[405838111,1771350654385,-250.0,0.00017997,3]
[405838112,1771350654395,-151.0,0.00017997,3]
[405838113,1771350654404,-745.65223616,0.00017997,3]
[405838114,1771350654414,-250.0,0.00017997,3]
[405838115,1771350654424,-253.83621088,0.00017997,3]
[405838116,1771350654434,-250.0,0.00017997,3]
[405838117,1771350654443,-151.0,0.00017997,3]
[405838118,1771350654453,-773.2413689,0.00017997,3]
[405838119,1771350654462,-250.0,0.00017997,3]
[405838120,1771350654472,-250.0,0.00017997,3]
[405838121,1771350654481,-151.0,0.00017997,3]
[405838122,1771350654491,-801.85129955,0.00017997,3]
[405838123,1771350654500,-250.0,0.00017997,3]
[405838124,1771350654510,-250.0,0.00017997,3]
[405838125,1771350654519,-151.0,0.00017997,3]
[405838126,1771350654529,-500.0,0.00017997,3]
[405838127,1771350654539,-831.51979763,0.00017997,3]
[405838128,1771350654548,-250.0,0.00017997,3]
[405838129,1771350654559,-250.0,0.00017997,3]
[405838130,1771350654569,-151.0,0.00017997,3]
[405838131,1771350654579,-151.0,0.00017997,2]
[405838132,1771350654589,-500.0,0.00017997,3]
[405838133,1771350654598,-250.0,0.00017997,3]
[405838134,1771350654608,-862.28603014,0.00017997,3]
[405838135,1771350654617,-250.0,0.00017997,3]
[405838136,1771350654627,-160.0,0.00017997,3]
[405838137,1771350654639,-151.0,0.00017997,3]
[405838138,1771350654648,-500.0,0.00017997,3]
[405838139,1771350654658,-250.0,0.00017997,3]
[405838140,1771350654668,-894.19061326,0.00017997,3]
[405838141,1771350654677,-250.0,0.00017997,3]
[405838142,1771350654687,-160.0,0.00017997,3]
[405838143,1771350654697,-151.0,0.00017997,3]
[405838144,1771350654707,-500.0,0.00017997,3]
[405838145,1771350654716,-250.0,0.00017997,3]
[405838146,1771350654725,-927.27566595,0.00017997,3]
[405838147,1771350654736,-209.40437684,0.00017997,3]
[405838148,1771350654745,-500.0,0.00017997,3]
[405838149,1771350654756,-961.58486559,0.00017997,3]
[405838150,1771350654768,-217.15233878,0.00017997,3]
[405838151,1771350654778,-160.32510575,0.00017997,3]
[405838152,1771350654792,-500.0,0.00017997,3]
[405838153,1771350654801,-997.16350561,0.00017997,3]
[405838154,1771350654811,-166.95668844,0.00017997,3]
[405838155,1771350654821,-500.0,0.00017997,3]
[405838156,1771350654830,-500.0,0.00017997,3]
[405838157,1771350654840,-9552.16786547,0.00017997,3]
[405838158,1771350654850,-200.0,0.00017997,3]
[405838159,1771350654862,-500.0,0.00017997,3]
[405838160,1771350654872,-9905.5980765,0.00017997,3]
[405838161,1771350654882,-200.0,0.00017997,3]
[405838162,1771350654891,-500.0,0.00017997,3]
[405838163,1771350654901,-10272.10520533,0.00017997,3]
[405838164,1771350654911,-200.0,0.00017997,3]
[405838165,1771350654922,-226.88409827,0.00017997,3]
[405838166,1771350654933,-162.380719,0.00017997,3]
[405838167,1771350654942,-1725.36664557,0.00017997,3]
[405838168,1771350654952,-200.0,0.00017997,3]
[405838169,1771350654962,-200.0,0.00017997,3]
[405838170,1771350654974,-168.3888056,0.00017997,3]
[405838171,1771350654985,-200.0,0.00017997,3]
[405838172,1771350654994,-250.0,0.00017997,3]
[405838173,1771350655004,-200.0,0.00017997,3]
[405838174,1771350655014,-174.61919141,0.00017997,3]
[405838175,1771350655023,-250.0,0.00017997,3]
[405838176,1771350655032,-200.0,0.00017997,3]
[405838177,1771350655042,-181.08010149,0.00017997,3]
[405838178,1771350655052,-200.0,0.00017997,3]
[405838179,1771350655064,-250.0,0.00017997,3]
[405838180,1771350655074,-200.0,0.00017997,3]
[405838181,1771350655084,-187.78006525,0.00017997,3]
[405838182,1771350655094,-200.0,0.00017997,3]
[405838183,1771350655103,-250.0,0.00017997,3]
[405838184,1771350655113,-200.0,0.00017997,3]
[405838185,1771350655123,-194.72792766,0.00017997,3]
[405838186,1771350655133,-200.0,0.00017997,3]
[405838187,1771350655144,-200.0,0.00017997,3]
[405838188,1771350655154,-201.93286099,0.00017997,3]
[405838189,1771350655164,-250.0,0.00017997,3]
[405838190,1771350655174,-200.0,0.00017997,3]
[405838191,1771350655183,-200.0,0.00017997,3]
[405838192,1771350655193,-209.40437684,0.00017997,3]
[405838193,1771350655203,-250.0,0.00017997,3]
[405838194,1771350655212,-200.0,0.00017997,3]
[405838195,1771350655222,-200.0,0.00017997,3]
[405838196,1771350655232,-217.15233878,0.00017997,3]
[405838197,1771350655242,-250.0,0.00017997,3]
[405838198,1771350655252,-200.0,0.00017997,3]
[405838199,1771350655262,-200.0,0.00017997,3]
[405838200,1771350655272,-299.86670045,0.00017997,3]
[405838201,1771350655282,-200.0,0.00017997,3]
[405838202,1771350655292,-250.0,0.00017997,3]
[405838203,1771350655301,-200.0,0.00017997,3]
[405838204,1771350655312,-721.12765535,0.00017997,3]
[405838205,1771350655322,-200.0,0.00017997,3]
[405838206,1771350655332,-200.0,0.00017997,3]
[405838207,1771350655342,-250.0,0.00017997,3]
[405838208,1771350655351,-747.8093786,0.00017997,3]
[405838209,1771350655361,-200.0,0.00017997,3]
[405838210,1771350655371,-775.47832561,0.00017997,3]
[405838211,1771350655381,-200.0,0.00017997,3]
[405838212,1771350655391,-250.0,0.00017997,3]
[405838213,1771350655401,-200.0,0.00017997,3]
[405838214,1771350655411,-804.17102365,0.00017997,3]
[405838215,1771350655422,-200.0,0.00017997,3]
[405838216,1771350655432,-250.0,0.00017997,3]
[405838217,1771350655443,-200.0,0.00017997,3]
[405838218,1771350655454,-833.92535153,0.00017997,3]
[405838219,1771350655464,-200.0,0.00017997,3]
[405838220,1771350655475,-200.0,0.00017997,3]
[405838221,1771350655485,-209.40437684,0.00017997,3]
[405838222,1771350655496,-864.78058953,0.00017997,3]
[405838223,1771350655506,-200.0,0.00017997,3]
[405838224,1771350655516,-200.0,0.00017997,3]
[405838225,1771350655527,-217.15233878,0.00017997,3]
[405838226,1771350655537,-896.77747135,0.00017997,3]
[405838227,1771350655548,-200.0,0.00017997,3]
[405838228,1771350655559,-200.0,0.00017997,3]
[405838229,1771350655569,-929.95823779,0.00017997,3]
[405838230,1771350655578,-225.18697532,0.00017997,3]
[405838231,1771350655591,-200.0,0.00017997,3]
[405838232,1771350655601,-964.36669259,0.00017997,3]
[405838233,1771350655611,-200.0,0.00017997,3]
[405838234,1771350655622,-233.51889341,0.00017997,3]
[405838235,1771350655632,-578.20924308,0.00017997,3]
[405838236,1771350655642,-1000.04826021,0.00017997,3]
[405838237,1771350655651,-242.15909246,0.00017997,3]
[405838238,1771350655661,-200.0,0.00017997,3]
[405838239,1771350655671,-599.60298507,0.00017997,3]
[405838240,1771350655680,-1037.05004584,0.00017997,3]
[405838241,1771350655689,-200.0,0.00017997,3]
[405838242,1771350655699,-251.11897888,0.00017997,3]
[405838243,1771350655709,-621.78829552,0.00017997,3]
[405838244,1771350655719,-200.0,0.00017997,3]
[405838245,1771350655911,-260.4103811,0.00017997,3]
[405838246,1771350655939,-644.79446246,0.00017997,3]
[405838247,1771350655949,-270.0455652,0.00017997,3]
[405838248,1771350655958,-668.65185757,0.00017997,3]
[405838249,1771350655968,-280.03725112,0.00017997,3]
[405838250,1771350655977,-693.3919763,0.00017997,3]
[405838251,1771350655986,-290.39862941,0.00017997,3]
[405838252,1771350655995,-301.1433787,0.00017997,3]
[405838253,1771350656005,-719.04747942,0.00017997,3]
[405838254,1771350656014,-745.65223616,0.00017997,3]
[405838255,1771350656023,-773.2413689,0.00017997,3]
[405838256,1771350656032,-801.85129955,0.00017997,3]
[405838257,1771350656042,-831.51979763,0.00017997,3]
[405838258,1771350656053,-151.0,0.00017997,3]
[405838259,1771350656063,-151.0,0.00017997,3]
[405838260,1771350656072,-151.0,0.00017997,3]
[405838261,1771350656082,-151.0,0.00017997,3]
[405838262,1771350656091,-151.0,0.00017997,3]
[405838263,1771350656101,-3000.0,0.00017997,3]
[405838264,1771350656111,-3000.0,0.00017997,3]
[405838265,1771350656120,-151.0,0.00017997,3]
[405838266,1771350656130,-200.0,0.00017997,3]
[405838267,1771350656140,-3000.0,0.00017997,3]
[405838268,1771350656150,-151.0,0.00017997,3]
[405838269,1771350656159,-200.0,0.00017997,3]
[405838270,1771350656169,-3000.0,0.00017997,3]
[405838271,1771350656180,-151.0,0.00017997,3]
[405838272,1771350656189,-3000.0,0.00017997,3]
[405838273,1771350656199,-151.0,0.00017997,3]
[405838274,1771350656208,-3000.0,0.00017997,3]
[405838275,1771350656218,-151.0,0.00017997,3]
[405838276,1771350656227,-3000.0,0.00017997,3]
[405838277,1771350656236,-151.0,0.00017997,3]
[405838278,1771350656246,-3000.0,0.00017997,3]
[405838279,1771350656255,-500.0,0.00017997,3]
[405838280,1771350656264,-500.0,0.00017997,3]
[405838281,1771350656273,-3000.0,0.00017997,3]
[405838282,1771350656283,-500.0,0.00017997,3]
[405838283,1771350656292,-3000.0,0.00017997,3]
[405838284,1771350656301,-500.0,0.00017997,3]
[405838285,1771350656314,-3000.0,0.00017997,3]
[405838286,1771350656323,-500.0,0.00017997,3]
[405838287,1771350656332,-500.0,0.00017997,3]
[405838288,1771350656341,-693.3919763,0.00017997,3]
[405838289,1771350656351,-500.0,0.00017997,3]
[405838290,1771350656361,-719.04747942,0.00017997,3]
[405838291,1771350656370,-500.0,0.00017997,3]
[405838292,1771350656379,-745.65223616,0.00017997,3]
[405838293,1771350656388,-500.0,0.00017997,3]
[405838294,1771350656398,-773.2413689,0.00017997,3]
[405838295,1771350656407,-500.0,0.00017997,3]
[405838296,1771350656416,-718.33554708,0.00017997,3]
[405838297,1771350656426,-500.0,0.00017997,3]
[405838298,1771350656435,-500.0,0.00017997,3]
[405838299,1771350656444,-500.0,0.00017997,3]
[405838300,1771350656454,-500.0,0.00017997,3]
[405838301,1771350656463,-500.0,0.00017997,3]
[405838302,1771350656472,-500.0,0.00017997,3]
[405838303,1771350656482,-500.0,0.00017997,3]
[405838304,1771350656491,-500.0,0.00017997,3]
[405838305,1771350656500,-500.0,0.00017997,3]
[405838306,1771350656509,-500.0,0.00017997,3]
[405838307,1771350656519,-300.0,0.00017999,2]
[405838308,1771350656528,-300.0,0.00017999,2]
[405838309,1771350656538,-666.0,0.00017999,2]
[405838310,1771350656547,-300.0,0.00017999,2]
[405838311,1771350656556,-300.0,0.00017999,2]
[405838312,1771350656567,-666.0,0.00017999,2]
[405838313,1771350656577,-858.24,0.00017999,2]
[405838314,1771350656586,-858.24,0.00017999,2]
[405838315,1771350656596,-858.24,0.00017999,2]
[405838316,1771350656605,-858.24,0.00017999,2]
[405838317,1771350656614,-858.24,0.00017999,2]
[405838318,1771350656624,-858.24,0.00017999,2]
[405838319,1771350656633,-858.40698515,0.00017999,2]
[405838320,1771350656642,-1608.12,0.00017999,2]
[405838321,1771350656652,-1608.12,0.00017999,2]
[405838322,1771350656661,-1608.12,0.00017999,2]
[405838323,1771350656670,-1608.12,0.00017999,2]
[405838324,1771350656679,-1608.12,0.00017999,2]
[405838325,1771350656688,-1608.12,0.00017999,2]
[405838326,1771350656697,-1608.14452513,0.00017999,2]
[405838327,1771350656707,-300.0,0.00017999,2]
[405838328,1771350656716,-666.0,0.00017999,2]
[405838329,1771350656725,-300.0,0.00017999,2]
[405838330,1771350656734,-300.0,0.00017999,2]
[405838331,1771350656743,-666.0,0.00017999,2]
[405838332,1771350656753,-300.0,0.00017999,2]
[405838333,1771350656763,-150.0,0.00017999,2]
[405838334,1771350656772,-150.0,0.00017999,2]
[405838335,1771350656783,-150.0,0.00017999,2]
[405838336,1771350656795,-150.0,0.00017999,2]
[405838337,1771350656804,-150.0,0.00017999,2]
[405838338,1771350656816,-150.0,0.00017999,2]
[405838339,1771350656827,-150.0,0.00017999,2]
[405838340,1771350656836,-150.0,0.00017999,2]
[405838341,1771350656845,-150.0,0.00017999,2]
[405838342,1771350656855,-150.0,0.00017999,2]
[405838343,1771350656865,-166.80967626,0.00017999,2]
[405838344,1771350656874,-28610.11146738,0.00017999,2]
[405838345,1771350656883,-262.13935403,0.00018,2]
[405838346,1771350656892,-3096515.61628749,0.00018,2]
[405838347,1771350656901,-277773.5209217,0.00018,2]
[405838348,1771350656910,-343242.63130576,0.00018,2]
[405838349,1771350657156,-500.0,0.00013873,2]
[405838350,1771350657166,-703.55824115,0.00014421,2]
[405838351,1771350657177,-296.44175885,0.00014421,2]
[405838352,1771350657186,-1500.0,0.00014968,2]
[405838353,1771350657195,-1249.18947078,0.00015516,2]
[405838354,1771350657205,-4446.07982512,0.00018,2]
[405838355,1771350657236,-201363.47486316,0.00018,2]
[405838356,1771350657246,-505.1374,0.00018,2]
[405838357,1771350657255,-1000.0,0.00018,2]
[405838358,1771350657265,-1000.0,0.00018,2]
[405838359,1771350657274,-1000.0,0.00018,2]
[405838360,1771350657284,-1000.0,0.00018,2]
[405838361,1771350657293,-1000.0,0.00018,2]
[405838362,1771350657303,-1000.0,0.00018,2]
[405838363,1771350657313,-1000.0,0.00018,2]
[405838364,1771350657322,-921.42216646,0.00018,2]
[405838365,1771350657332,-150.0,0.00018,2]
[405838366,1771350657341,-2035.41018249,0.00018,2]
[405838367,1771350657351,-150.0,0.00018,2]
[405838368,1771350657360,-3080.85541333,0.00018,2]
[405838369,1771350657369,-171776.40805806,0.00018,2]
[405838370,1771350657383,-994820.53861285,0.00018,2]
[405838371,1771350657438,-644303.96035087,0.00018,2]
[405838372,1771350657449,-178927.99239397,0.00018,2]
[405838373,1771350657459,-2445.37886407,0.00018,2]
[405838374,1771350657475,-501.68252678,0.00018,2]
[405838375,1771350657486,-47641.93730111,0.00018,2]
[405838376,1771350657496,-5315.1,0.00018,2]
[405838377,1771350657711,-391.76000001,7.37e-05,2]
[405838378,1771350657725,-1948.85935807,7.37e-05,2]
[405838379,1771350657735,-732.23496577,0.00018,2]
[405838380,1771350657758,-104327.26251832,0.00018,2]
[405838381,1771350657770,-459.58986104,0.00018,2]
[405838382,1771350657820,-1252.46204296,0.00018,2]
[405838383,1771350657832,-2790.4119159,0.00018,2]
[405838384,1771350658182,-1181.84113077,0.00018,2]
[405838385,1771351293447,7033.889,6.859e-05,2]
[405838386,1771351293489,676.851,6.859e-05,2]
[405838387,1771351353482,187.39,6.725e-05,2]
[405838388,1771351410252,2101.88,6.898e-05,2]
[405838389,1771351410275,10000.01,6.898e-05,2]
[405838390,1771351410297,10000.01,6.898e-05,2]
[405838391,1771351410320,10000.01,6.898e-05,2]
[405838392,1771351410343,10000.01,6.898e-05,2]
[405838393,1771351410364,10000.01,6.898e-05,2]
[405838394,1771351410387,10000.01,6.898e-05,2]
[405838395,1771351410409,10000.01,6.898e-05,2]
[405838396,1771351410430,10000.01,6.898e-05,2]
[405838397,1771351410453,10000.01,6.898e-05,2]
[405838398,1771351417435,-9040.49694612,6.898e-05,2]
[405838399,1771351417542,-10000.01,6.898e-05,2]
[405838400,1771351417639,-10000.01,6.898e-05,2]
[405838401,1771351417768,-10000.01,6.898e-05,2]
[405838402,1771351418011,-10000.01,6.898e-05,2]
[405838403,1771351418123,-10000.01,6.898e-05,2]
[405838404,1771351420203,-10000.01,6.898e-05,2]
[405838405,1771351420346,-10000.01,6.898e-05,2]
[405838406,1771351423168,-10000.01,6.898e-05,2]
[405838407,1771351423280,-10000.01,6.898e-05,2]
[405838408,1771351423394,-10000.01,6.898e-05,2]
[405838409,1771351423517,-10000.01,6.898e-05,2]
[405838410,1771351423663,-10000.01,6.898e-05,2]
[405838411,1771351423804,-10000.01,6.898e-05,2]
[405838412,1771351508048,153.0,6.898e-05,3]
[405838419,1771351806914,153.0,6.898e-05,3]
[405838422,1771351831466,-300.0,6.797e-05,2]
[405838423,1771351831475,-8.29206342,6.797e-05,2]
[405838424,1771351831487,-141.70793658,6.797e-05,2]
[405838425,1771351831497,-1200.0,6.797e-05,2]
[405838426,1771351831507,-300.0,6.797e-05,2]
[405838427,1771351831516,-1306.79206343,6.798e-05,2]
[405838428,1771351831527,-250.0,6.798e-05,2]
[405838429,1771351831551,-1661.19523297,6.798e-05,2]
[405838430,1771351831572,-320953.77273655,6.798e-05,2]
[405838431,1771351831584,-3162.57339423,6.798e-05,2]
[405838432,1771351831594,-111539.34256331,6.798e-05,2]
[405838516,1771351837559,-317.76,6.798e-05,2]
[405838517,1771351837726,-579.9732624,6.798e-05,2]
[405838564,1771351839611,-1613.38149951,6.798e-05,2]
[405838565,1771351839623,-3058615.2092476,6.798e-05,2]
[405838566,1771351839632,-185.29568936,6.896e-05,2]
[405838567,1771351839645,-5209.65985741,6.896e-05,2]
[405838568,1771351839654,-250.0,6.896e-05,2]
[405838569,1771351839664,-500.0,6.897e-05,2]
[405838570,1771351839673,-500.0,6.897e-05,2]
[405838571,1771351839682,-500.0,6.897e-05,2]
[405838572,1771351839691,-500.0,6.897e-05,2]
[405838573,1771351839700,-500.0,6.897e-05,2]
[405838574,1771351839709,-527.86860885,6.897e-05,2]
[405838575,1771351839718,-500.0,6.897e-05,2]
[405838576,1771351839727,-500.0,6.897e-05,2]
[405838577,1771351839737,-500.0,6.897e-05,2]
[405838578,1771351839746,-500.0,6.897e-05,2]
[405838579,1771351839755,-500.0,6.897e-05,2]
[405838580,1771351839764,-500.0,6.897e-05,2]
[405838581,1771351839774,-500.0,6.897e-05,2]
[405838582,1771351839783,-150.35941026,6.897e-05,2]
[405838583,1771351839793,-200.0,6.897e-05,2]
[405838584,1771351839803,-500.0,6.897e-05,2]
[405838585,1771351839812,-500.0,6.897e-05,2]
[405838586,1771351839823,-300.0,6.897e-05,2]
[405838587,1771351839832,-1000.0,6.897e-05,2]
[405838588,1771351839841,-250.0,6.936e-05,2]
[405838589,1771351839851,-194.0,6.998e-05,2]
[405838590,1771351839860,-1471.46208079,6.998e-05,2]
[405838591,1771351839869,-159.62,7.3e-05,2]
[405838592,1771351839879,-420.0,7.476e-05,2]
[405838593,1771351839888,-255.0,7.476e-05,2]
[405838594,1771351839898,-1680.0,7.476e-05,2]
[405838595,1771351839907,-250.0,7.586e-05,2]
[405838596,1771351839917,-299.99,7.692e-05,2]
[405838597,1771351839926,-7670.69,7.692e-05,2]
[405838598,1771351839936,-9999.99,7.692e-05,2]
[405838599,1771351839946,-150.99,7.692e-05,2]